{"text_format":"3","workbook":"xlsx","n_sheets":2,"sheets":["Список викладача"," Дані списку"],"not_rendered":{"defined_names":6},"read":"whole","date_system":"1900"}

{"sheet":"Список викладача","index":0,"n_rows":10,"n_cols":10,"rows_kept":10,"merged":[[0,1,0,2],[0,4,0,8],[2,9,6,9]]}
[null,"Список викладача",null,"Дані списку","Легенду кольорів для стану наведено в цій клітинці: Стан \"Не почато\" – звичайний стиль, \"Виконується\" – R=91 G=133 B=49, \"На сьогодні\" – R=118 G=88 B=0, \"На утриманні\" – R=109 G=66 B=111, \"Виконано\" – із закресленням, \"Скасовано\" – R=191 G=191 B=191 і \"Прострочено\" – R=191 G=33 B=28."]
[null,"ПУНКТ","КАТЕГОРІЯ","ДАТА ПОЧАТКУ","ДАТА ЗАВЕРШЕННЯ","ЗАЛИШИЛОСЯ ДНІВ","СТАН","НОТАТКИ"]
[null,"Прибрати в шафах","Офіс",{"$f":"DATE(YEAR(TODAY()),MONTH(TODAY())-1,6)","v":"2018-04-06"},{"$f":"DATE(YEAR(TODAY()),MONTH(TODAY())-1,16)","v":"2018-04-16"},{"$f":"IFERROR(IF(COUNT(Список[[#This Row],[ДАТА ПОЧАТКУ]]:Список[[#This Row],[ДАТА ЗАВЕРШЕННЯ]])<>2,\"\",IF(OR(Список[[#This Row],[СТАН]]=\"Виконано\",Список[[#This Row],[СТАН]]=\"Скасовано\",Список[[#This Row],[СТАН]]=\"На утриманні\"),\"\",Список[[#This Row],[ДАТА ЗАВЕРШЕННЯ]]-TODAY())),\"\")","v":""},"Виконано",null,null,"Роздільник стану наведено в цій клітинці. Щоб відфільтрувати список за станом, виберіть стан із цього роздільника. Утримуйте натиснутою клавішу Ctrl, щоб вибрати кілька варіантів."]
[null,"Замовити наклейки","Витратні матеріали",{"$f":"DATE(YEAR(TODAY()),MONTH(TODAY())-1,11)","v":"2018-04-11"},{"$f":"DATE(YEAR(TODAY()),MONTH(TODAY())-1,21)","v":"2018-04-21"},{"$f":"IFERROR(IF(COUNT(Список[[#This Row],[ДАТА ПОЧАТКУ]]:Список[[#This Row],[ДАТА ЗАВЕРШЕННЯ]])<>2,\"\",IF(OR(Список[[#This Row],[СТАН]]=\"Виконано\",Список[[#This Row],[СТАН]]=\"Скасовано\",Список[[#This Row],[СТАН]]=\"На утриманні\"),\"\",Список[[#This Row],[ДАТА ЗАВЕРШЕННЯ]]-TODAY())),\"\")","v":""},"Виконано"]
[null,"Помити й натерти підлоги","Інше",{"$f":"DATE(YEAR(TODAY()),MONTH(TODAY()-1),DAY(TODAY())-25)","v":"2018-04-15"},{"$f":"DATE(YEAR(TODAY()),MONTH(TODAY())-1,26)","v":"2018-04-26"},{"$f":"IFERROR(IF(COUNT(Список[[#This Row],[ДАТА ПОЧАТКУ]]:Список[[#This Row],[ДАТА ЗАВЕРШЕННЯ]])<>2,\"\",IF(OR(Список[[#This Row],[СТАН]]=\"Виконано\",Список[[#This Row],[СТАН]]=\"Скасовано\",Список[[#This Row],[СТАН]]=\"На утриманні\"),\"\",Список[[#This Row],[ДАТА ЗАВЕРШЕННЯ]]-TODAY())),\"\")","v":""},"Виконано"]
[null,"Створити етикетки з іменами","Витратні матеріали",{"$f":"DATE(YEAR(TODAY()),MONTH(TODAY())-1,21)","v":"2018-04-21"},{"$f":"DATE(YEAR(TODAY()),MONTH(TODAY())-1,1)","v":"2018-04-01"},{"$f":"IFERROR(IF(COUNT(Список[[#This Row],[ДАТА ПОЧАТКУ]]:Список[[#This Row],[ДАТА ЗАВЕРШЕННЯ]])<>2,\"\",IF(OR(Список[[#This Row],[СТАН]]=\"Виконано\",Список[[#This Row],[СТАН]]=\"Скасовано\",Список[[#This Row],[СТАН]]=\"На утриманні\"),\"\",Список[[#This Row],[ДАТА ЗАВЕРШЕННЯ]]-TODAY())),\"\")","v":""},"На утриманні"]
[null,"Скласти звіти квартальних оцінок","Оцінювання",{"$f":"DATE(YEAR(TODAY()),MONTH(TODAY())-1,26)","v":"2018-04-26"},{"$f":"TODAY()-5","v":"2018-05-05"},{"$f":"IFERROR(IF(COUNT(Список[[#This Row],[ДАТА ПОЧАТКУ]]:Список[[#This Row],[ДАТА ЗАВЕРШЕННЯ]])<>2,\"\",IF(OR(Список[[#This Row],[СТАН]]=\"Виконано\",Список[[#This Row],[СТАН]]=\"Скасовано\",Список[[#This Row],[СТАН]]=\"На утриманні\"),\"\",Список[[#This Row],[ДАТА ЗАВЕРШЕННЯ]]-TODAY())),\"\")","v":-5},"Прострочено"]
[null,"Нагадування електронною поштою про дозволи від батьків","Телефонні виклики",{"$f":"DATE(YEAR(TODAY()),MONTH(TODAY()),1)","v":"2018-05-01"},{"$f":"TODAY()","v":"2018-05-10"},{"$f":"IFERROR(IF(COUNT(Список[[#This Row],[ДАТА ПОЧАТКУ]]:Список[[#This Row],[ДАТА ЗАВЕРШЕННЯ]])<>2,\"\",IF(OR(Список[[#This Row],[СТАН]]=\"Виконано\",Список[[#This Row],[СТАН]]=\"Скасовано\",Список[[#This Row],[СТАН]]=\"На утриманні\"),\"\",Список[[#This Row],[ДАТА ЗАВЕРШЕННЯ]]-TODAY())),\"\")","v":""},"Скасовано"]
[null,"Звіти про оцінки за усне мовлення","Офіс",{"$f":"DATE(YEAR(TODAY()),MONTH(TODAY()),7)","v":"2018-05-07"},{"$f":"DATE(YEAR(TODAY()),MONTH(TODAY()),17)","v":"2018-05-17"},{"$f":"IFERROR(IF(COUNT(Список[[#This Row],[ДАТА ПОЧАТКУ]]:Список[[#This Row],[ДАТА ЗАВЕРШЕННЯ]])<>2,\"\",IF(OR(Список[[#This Row],[СТАН]]=\"Виконано\",Список[[#This Row],[СТАН]]=\"Скасовано\",Список[[#This Row],[СТАН]]=\"На утриманні\"),\"\",Список[[#This Row],[ДАТА ЗАВЕРШЕННЯ]]-TODAY())),\"\")","v":7},"Виконується"]
[null,"Наточити олівці","Витратні матеріали",{"$f":"DATE(YEAR(TODAY()),MONTH(TODAY()),11)","v":"2018-05-11"},{"$f":"DATE(YEAR(TODAY()),MONTH(TODAY()),10)","v":"2018-05-10"},{"$f":"IFERROR(IF(COUNT(Список[[#This Row],[ДАТА ПОЧАТКУ]]:Список[[#This Row],[ДАТА ЗАВЕРШЕННЯ]])<>2,\"\",IF(OR(Список[[#This Row],[СТАН]]=\"Виконано\",Список[[#This Row],[СТАН]]=\"Скасовано\",Список[[#This Row],[СТАН]]=\"На утриманні\"),\"\",Список[[#This Row],[ДАТА ЗАВЕРШЕННЯ]]-TODAY())),\"\")","v":0},"Виконується"]

{"sheet":" Дані списку","index":1,"n_rows":13,"n_cols":3,"rows_kept":13}
[null,"Дані списку","Список викладача"]
[null,"Категорія"]
[null,"Офіс"]
[null,"Витратні матеріали"]
[null,"Потрібно придбати"]
[null,"Телефонні виклики"]
[null,"Нові ідеї"]
[null,"Оцінювання"]
[null,"Команда"]
[null,"Заходи"]
[null,"Комп’ютер"]
[null,"Особисте"]
[null,"Інше"]